[Event "*** Titled Tuesday Blitz"]
[Site "Chess.com"]
[Date "2018.05.01"]
[Round "10"]
[White "sergeikim"]
[Black "JoachimBN"]
[Result "0-1"]
[WhiteElo "2357"]
[BlackElo "2558"]
[TimeControl "180+2"]
[EndTime "15:14:43 PDT"]
[Termination "JoachimBN won by resignation"]

1. d4 {[%clk 0:03:01.9]} 1... g6 {[%clk 0:03:00.2]} 2. c4 {[%clk 0:03:02.6]}
2... Bg7 {[%clk 0:03:01.6]} 3. Nc3 {[%clk 0:03:03.5]} 3... c5 {[%clk 0:03:03]}
4. Nf3 {[%clk 0:03:01.6]} 4... cxd4 {[%clk 0:03:03.9]} 5. Nxd4 {[%clk 0:03:02]}
5... Nc6 {[%clk 0:03:05.6]} 6. Nxc6 {[%clk 0:02:58.8]} 6... bxc6 {[%clk
0:03:07.5]} 7. Bd2 {[%clk 0:02:51.3]} 7... Rb8 {[%clk 0:03:03.6]} 8. Qc2 {[%clk
0:02:41.1]} 8... Nh6 {[%clk 0:03:03.5]} 9. e4 {[%clk 0:02:37.7]} 9... O-O {[%clk
0:03:02.8]} 10. Be2 {[%clk 0:02:36]} 10... d6 {[%clk 0:03:02]} 11. O-O {[%clk
0:02:35.5]} 11... Ng4 {[%clk 0:02:51.6]} 12. Rad1 {[%clk 0:02:32.1]} 12... Nf6
{[%clk 0:02:42.4]} 13. Be3 {[%clk 0:02:29.4]} 13... Qc7 {[%clk 0:02:39.2]} 14.
h3 {[%clk 0:02:27.4]} 14... a5 {[%clk 0:02:37.7]} 15. c5 {[%clk 0:02:16.4]}
15... d5 {[%clk 0:02:36.8]} 16. exd5 {[%clk 0:02:12.3]} 16... Nxd5 {[%clk
0:02:38.7]} 17. Nxd5 {[%clk 0:02:07.8]} 17... cxd5 {[%clk 0:02:39.6]} 18. b3
{[%clk 0:02:05.7]} 18... Bb7 {[%clk 0:02:37.9]} 19. a3 {[%clk 0:01:42.9]} 19...
Rfd8 {[%clk 0:02:37.5]} 20. b4 {[%clk 0:01:41.3]} 20... Bc6 {[%clk 0:02:37.4]}
21. Qd2 {[%clk 0:01:31.5]} 21... d4 {[%clk 0:02:33.9]} 22. Bg5 {[%clk
0:01:24.7]} 22... f6 {[%clk 0:02:31.7]} 23. Bc4+ {[%clk 0:01:17.4]} 23... Kh8
{[%clk 0:02:28.8]} 24. Bh4 {[%clk 0:01:14.7]} 24... axb4 {[%clk 0:02:29.5]} 25.
axb4 {[%clk 0:01:14.8]} 25... e5 {[%clk 0:02:31]} 26. Rb1 {[%clk 0:01:09.8]}
26... Bb5 {[%clk 0:02:22]} 27. Qa2 {[%clk 0:00:54]} 27... Qc6 {[%clk 0:02:15.1]}
28. Rfc1 {[%clk 0:00:51.1]} 28... Rd7 {[%clk 0:02:06]} 29. Be6 {[%clk
0:00:41.3]} 29... Rdd8 {[%clk 0:02:02.3]} 30. Bc4 {[%clk 0:00:40.8]} 30... g5
{[%clk 0:01:59.6]} 31. Bg3 {[%clk 0:00:40.7]} 31... Bxc4 {[%clk 0:01:57.9]} 32.
Qxc4 {[%clk 0:00:40.3]} 32... Rb5 {[%clk 0:01:59.3]} 33. h4 {[%clk 0:00:37.2]}
33... g4 {[%clk 0:01:50.7]} 34. Qf7 {[%clk 0:00:31.4]} 34... Rf8 {[%clk
0:01:42.8]} 35. Qc4 {[%clk 0:00:30.8]} 35... f5 {[%clk 0:01:43.8]} 36. h5 {[%clk
0:00:30.5]} 36... Bf6 {[%clk 0:01:40.5]} 37. Ra1 {[%clk 0:00:21]} 37... f4
{[%clk 0:01:41.3]} 38. Bh2 {[%clk 0:00:22.1]} 38... Rb7 {[%clk 0:01:35.2]} 39.
Ra6 {[%clk 0:00:20.7]} 39... Qe4 {[%clk 0:01:29.2]} 40. c6 {[%clk 0:00:20.5]}
40... Rc7 {[%clk 0:01:30.2]} 41. b5 {[%clk 0:00:21.1]} 41... Rfc8 {[%clk
0:01:31.2]} 42. Raa1 {[%clk 0:00:19.7]} 42... Bh4 {[%clk 0:01:25]} 43. Re1
{[%clk 0:00:18.7]} 43... Qf5 {[%clk 0:01:26.1]} 44. Qd5 {[%clk 0:00:19.4]} 44...
Bf6 {[%clk 0:01:24.7]} 45. Rac1 {[%clk 0:00:16.9]} 45... Rd8 {[%clk 0:01:25.8]}
46. Qe4 {[%clk 0:00:16.3]} 46... Qxe4 {[%clk 0:01:23.3]} 47. Rxe4 {[%clk
0:00:16.6]} 47... Rb8 {[%clk 0:01:25.2]} 48. Rb1 {[%clk 0:00:16.9]} 48... Rxc6
{[%clk 0:01:26.6]} 49. h6 {[%clk 0:00:13.8]} 49... Rcb6 {[%clk 0:01:19.2]} 50.
g3 {[%clk 0:00:14.2]} 50... f3 {[%clk 0:01:14.2]} 51. Rxg4 {[%clk 0:00:14.1]}
51... Rxb5 {[%clk 0:01:15.6]} 52. Rf1 {[%clk 0:00:11.7]} 52... Rb1 {[%clk
0:01:15.7]} 53. Re4 {[%clk 0:00:12.5]} 53... Rxf1+ {[%clk 0:01:16.6]} 54. Kxf1
{[%clk 0:00:13.8]} 54... Rb1+ {[%clk 0:01:18.2]} 55. Re1 {[%clk 0:00:15.3]}
55... Rxe1+ {[%clk 0:01:19.4]} 56. Kxe1 {[%clk 0:00:16.4]} 56... e4 {[%clk
0:01:21]} 57. g4 {[%clk 0:00:16.5]} 57... Kg8 {[%clk 0:01:22.4]} 58. Bf4 {[%clk
0:00:17.2]} 58... Kf7 {[%clk 0:01:23.5]} 59. Kd2 {[%clk 0:00:18.3]} 59... Kg6
{[%clk 0:01:24.4]} 60. Kc2 {[%clk 0:00:19.4]} 60... Bg5 {[%clk 0:01:22]} 61. Be5
{[%clk 0:00:20.6]} 61... d3+ {[%clk 0:01:23.1]} 62. Kc3 {[%clk 0:00:21.6]} 62...
Bxh6 {[%clk 0:01:23.3]} 63. Bg3 {[%clk 0:00:21.2]} 63... Bg7+ {[%clk 0:01:23.8]}
64. Kd2 {[%clk 0:00:22]} 64... Bd4 {[%clk 0:01:25.3]} 65. Bh4 {[%clk 0:00:21.5]}
65... h5 {[%clk 0:01:22.4]} 66. gxh5+ {[%clk 0:00:21.6]} 66... Kxh5 {[%clk
0:01:24.3]} 67. Bg3 {[%clk 0:00:22.9]} 67... Kg4 {[%clk 0:01:25.9]} 68. Kd1
{[%clk 0:00:22.8]} 68... Kh3 {[%clk 0:01:26.9]} 69. Kd2 {[%clk 0:00:23.1]} 69...
Kg2 {[%clk 0:01:28.1]} 70. Ke1 {[%clk 0:00:24.3]} 70... Bc3+ {[%clk 0:01:29.4]}
71. Kd1 {[%clk 0:00:25.1]} 71... Kf1 {[%clk 0:01:31]} 72. Bh4 {[%clk 0:00:25.3]}
72... Bd4 {[%clk 0:01:32.3]} 73. Kd2 {[%clk 0:00:25.4]} 73... Bxf2 {[%clk
0:01:33.2]} 74. Bg5 {[%clk 0:00:24.7]} 74... Bd4 {[%clk 0:01:29.5]} 75. Be3
{[%clk 0:00:24.3]} 75... Bxe3+ {[%clk 0:01:30.1]} 0-1

[Event "*** Titled Tuesday Blitz"]
[Site "Chess.com"]
[Date "2018.05.01"]
[Round "10"]
[White "FastChance"]
[Black "Sanan_Sjugirov"]
[Result "0-1"]
[WhiteElo "2665"]
[BlackElo "2783"]
[TimeControl "180+2"]
[EndTime "15:15:57 PDT"]
[Termination "Sanan_Sjugirov won by resignation"]

1. e4 {[%clk 0:03:01.9]} 1... g6 {[%clk 0:02:57.3]} 2. Nf3 {[%clk 0:03:00.2]}
2... Bg7 {[%clk 0:02:58.3]} 3. d4 {[%clk 0:02:57.6]} 3... d6 {[%clk 0:02:59.2]}
4. Nc3 {[%clk 0:02:58.4]} 4... a6 {[%clk 0:02:56.2]} 5. a4 {[%clk 0:02:59.2]}
5... Nf6 {[%clk 0:02:55.9]} 6. h3 {[%clk 0:02:59.7]} 6... O-O {[%clk 0:02:56.4]}
7. Be3 {[%clk 0:03:00.9]} 7... Nc6 {[%clk 0:02:55.7]} 8. Be2 {[%clk 0:02:59.8]}
8... e6 {[%clk 0:02:40.4]} 9. O-O {[%clk 0:03:00.2]} 9... b6 {[%clk 0:02:39.7]}
10. Re1 {[%clk 0:02:58]} 10... Bb7 {[%clk 0:02:40.2]} 11. Nd2 {[%clk 0:02:47.3]}
11... Nb4 {[%clk 0:02:36]} 12. Bf3 {[%clk 0:02:34.5]} 12... Nd7 {[%clk
0:02:15.2]} 13. Ncb1 {[%clk 0:02:28.3]} 13... c5 {[%clk 0:02:10.1]} 14. c3
{[%clk 0:02:22]} 14... Nd3 {[%clk 0:02:03.1]} 15. Rf1 {[%clk 0:02:14.3]} 15...
cxd4 {[%clk 0:02:01.2]} 16. cxd4 {[%clk 0:01:59.6]} 16... e5 {[%clk 0:02:02]}
17. Nc4 {[%clk 0:01:54.3]} 17... exd4 {[%clk 0:01:57.8]} 18. Bxd4 {[%clk
0:01:49.3]} 18... Bxd4 {[%clk 0:01:54.9]} 19. Qxd3 {[%clk 0:01:50.5]} 19... Qf6
{[%clk 0:01:52.9]} 20. Nc3 {[%clk 0:01:42.6]} 20... Ne5 {[%clk 0:01:47]} 21.
Nxe5 {[%clk 0:01:39.2]} 21... dxe5 {[%clk 0:01:48.9]} 22. Rab1 {[%clk
0:01:30.7]} 22... Qd6 {[%clk 0:01:49.3]} 23. Rfd1 {[%clk 0:01:28.9]} 23... Rfd8
{[%clk 0:01:47.8]} 24. Qc4 {[%clk 0:01:18]} 24... Rac8 {[%clk 0:01:45.6]} 25.
Qb3 {[%clk 0:01:19.3]} 25... Qc5 {[%clk 0:01:42.5]} 26. Rd2 {[%clk 0:01:15.6]}
26... Kg7 {[%clk 0:01:31.2]} 27. Rbd1 {[%clk 0:01:16.4]} 27... Rd6 {[%clk
0:01:28.4]} 28. g3 {[%clk 0:01:07]} 28... Rf6 {[%clk 0:01:16.7]} 29. Kg2 {[%clk
0:01:03.3]} 29... Rd8 {[%clk 0:01:10.5]} 30. Ne2 {[%clk 0:00:57.4]} 30... h5
{[%clk 0:00:41.9]} 31. h4 {[%clk 0:00:57.1]} 31... a5 {[%clk 0:00:41.2]} 32.
Nxd4 {[%clk 0:00:57.4]} 32... exd4 {[%clk 0:00:41.4]} 33. Qd3 {[%clk 0:00:50.4]}
33... Qe5 {[%clk 0:00:41.1]} 34. Re2 {[%clk 0:00:43.8]} 34... Bc8 {[%clk
0:00:31.1]} 35. Kg1 {[%clk 0:00:40.3]} 35... Bh3 {[%clk 0:00:23.1]} 36. Ree1
{[%clk 0:00:36.8]} 36... Rc6 {[%clk 0:00:20.7]} 37. Bg2 {[%clk 0:00:34.8]} 37...
Bg4 {[%clk 0:00:21.2]} 38. Rd2 {[%clk 0:00:34.6]} 38... Rc5 {[%clk 0:00:20.6]}
39. f3 {[%clk 0:00:32.4]} 39... Be6 {[%clk 0:00:19.6]} 40. f4 {[%clk 0:00:32.7]}
40... Qc7 {[%clk 0:00:20.4]} 41. e5 {[%clk 0:00:21.2]} 41... Bf5 {[%clk
0:00:19.7]} 42. Qe2 {[%clk 0:00:20.9]} 42... d3 {[%clk 0:00:19.9]} 43. Qe3
{[%clk 0:00:22.3]} 43... Rc2 {[%clk 0:00:20.3]} 44. Red1 {[%clk 0:00:23.2]}
44... Rxd2 {[%clk 0:00:21.1]} 45. Rxd2 {[%clk 0:00:24.5]} 45... Rc8 {[%clk
0:00:19]} 46. Kh2 {[%clk 0:00:20]} 46... Qc1 {[%clk 0:00:19.6]} 47. Rxd3 {[%clk
0:00:15.3]} 47... Bxd3 {[%clk 0:00:19.5]} 48. Qxd3 {[%clk 0:00:17.2]} 48... Qc7
{[%clk 0:00:14.7]} 49. b3 {[%clk 0:00:15.9]} 49... Rd8 {[%clk 0:00:15.3]} 50.
Qe3 {[%clk 0:00:12.4]} 50... Qc5 {[%clk 0:00:16]} 51. Qe4 {[%clk 0:00:11.7]}
51... Rd2 {[%clk 0:00:16]} 52. e6 {[%clk 0:00:09.7]} 52... fxe6 {[%clk
0:00:09.6]} 53. Qxe6 {[%clk 0:00:10.8]} 53... Qd6 {[%clk 0:00:09.2]} 54. Qe4
{[%clk 0:00:10.7]} 54... Qc7 {[%clk 0:00:07.1]} 55. Kh3 {[%clk 0:00:10.3]} 55...
Qd7+ {[%clk 0:00:07.2]} 56. Kh2 {[%clk 0:00:11.5]} 56... Kh7 {[%clk 0:00:08.5]}
57. Qe5 {[%clk 0:00:09.1]} 57... Qf7 {[%clk 0:00:09]} 58. Qe4 {[%clk 0:00:09.7]}
58... Rd7 {[%clk 0:00:09]} 59. Qe3 {[%clk 0:00:10]} 59... Qf6 {[%clk 0:00:09.6]}
60. Bh3 {[%clk 0:00:10.6]} 60... Re7 {[%clk 0:00:10.1]} 61. Qd3 {[%clk
0:00:11.5]} 61... Kg7 {[%clk 0:00:11.4]} 62. Bg2 {[%clk 0:00:12.3]} 62... Qe6
{[%clk 0:00:12.4]} 63. Qd4+ {[%clk 0:00:13.1]} 63... Qf6 {[%clk 0:00:14]} 64.
Qc4 {[%clk 0:00:14.7]} 64... Qb2 {[%clk 0:00:14.4]} 65. Qd5 {[%clk 0:00:13.4]}
65... Qf6 {[%clk 0:00:14]} 66. Qc4 {[%clk 0:00:13.5]} 66... Rd7 {[%clk
0:00:14.9]} 67. Bf3 {[%clk 0:00:13.1]} 67... Qd4 {[%clk 0:00:14.6]} 68. Qe6
{[%clk 0:00:12.7]} 68... Qd6 {[%clk 0:00:14.3]} 69. Qe4 {[%clk 0:00:13.1]} 69...
Re7 {[%clk 0:00:14.5]} 70. Qc4 {[%clk 0:00:13.9]} 70... Qc5 {[%clk 0:00:15.4]}
71. Qd3 {[%clk 0:00:11.4]} 71... Qe3 {[%clk 0:00:13.6]} 72. Qd5 {[%clk
0:00:12.1]} 72... Qc5 {[%clk 0:00:13.7]} 73. Qd3 {[%clk 0:00:13.1]} 73... Qf2+
{[%clk 0:00:10.3]} 74. Bg2 {[%clk 0:00:13.4]} 74... Re3 {[%clk 0:00:11.8]} 75.
Qd7+ {[%clk 0:00:14]} 75... Kh6 {[%clk 0:00:13.2]} 76. Qh3 {[%clk 0:00:13]}
76... Rxb3 {[%clk 0:00:13]} 77. f5 {[%clk 0:00:13.8]} 77... gxf5 {[%clk
0:00:13.3]} 0-1

[Event "*** Titled Tuesday Blitz"]
[Site "Chess.com"]
[Date "2018.05.01"]
[Round "10"]
[White "jk13"]
[Black "Jbd735"]
[Result "0-1"]
[WhiteElo "2529"]
[BlackElo "2371"]
[TimeControl "180+2"]
[EndTime "15:16:02 PDT"]
[Termination "Jbd735 won by resignation"]

1. e4 {[%clk 0:03:01.9]} 1... e5 {[%clk 0:03:00.4]} 2. Nf3 {[%clk 0:03:02.5]}
2... Nc6 {[%clk 0:03:01.1]} 3. Bc4 {[%clk 0:03:03.3]} 3... Bc5 {[%clk
0:03:00.9]} 4. c3 {[%clk 0:03:04.5]} 4... Nf6 {[%clk 0:03:00.6]} 5. d3 {[%clk
0:03:05.8]} 5... d6 {[%clk 0:02:53.7]} 6. Bb3 {[%clk 0:03:06.1]} 6... h6 {[%clk
0:02:52.9]} 7. h3 {[%clk 0:03:07.1]} 7... O-O {[%clk 0:02:51.6]} 8. O-O {[%clk
0:03:07.1]} 8... a6 {[%clk 0:02:46.1]} 9. Re1 {[%clk 0:03:07.9]} 9... Ba7 {[%clk
0:02:36.6]} 10. Nbd2 {[%clk 0:03:09]} 10... Re8 {[%clk 0:02:34.3]} 11. Nf1
{[%clk 0:03:10.2]} 11... Be6 {[%clk 0:02:35]} 12. Bc2 {[%clk 0:03:10.7]} 12...
d5 {[%clk 0:02:29.4]} 13. Qe2 {[%clk 0:03:11.4]} 13... Qd7 {[%clk 0:01:52.3]}
14. N3h2 {[%clk 0:03:05.6]} 14... Rad8 {[%clk 0:01:50.7]} 15. Ng3 {[%clk
0:03:02.4]} 15... Ne7 {[%clk 0:01:30.5]} 16. Nh5 {[%clk 0:02:27.6]} 16... Nxh5
{[%clk 0:01:26.9]} 17. Qxh5 {[%clk 0:02:29.5]} 17... Ng6 {[%clk 0:01:10.7]} 18.
Nf3 {[%clk 0:02:27.5]} 18... dxe4 {[%clk 0:01:06.6]} 19. dxe4 {[%clk 0:02:28.3]}
19... Qc6 {[%clk 0:00:44.1]} 20. a4 {[%clk 0:02:10.6]} 20... Bc4 {[%clk
0:00:42.3]} 21. a5 {[%clk 0:02:02.4]} 21... Qf6 {[%clk 0:00:38.4]} 22. Qg4
{[%clk 0:01:50.5]} 22... Nf4 {[%clk 0:00:28.9]} 23. Bxf4 {[%clk 0:01:42.6]}
23... Qxf4 {[%clk 0:00:29]} 24. Qxf4 {[%clk 0:01:38.7]} 24... exf4 {[%clk
0:00:30.9]} 25. e5 {[%clk 0:01:29.4]} 25... g5 {[%clk 0:00:28.3]} 26. Be4 {[%clk
0:01:23.8]} 26... c6 {[%clk 0:00:27.9]} 27. Rad1 {[%clk 0:01:24.1]} 27... Bb3
{[%clk 0:00:26.3]} 28. Rxd8 {[%clk 0:01:19.6]} 28... Rxd8 {[%clk 0:00:28.2]} 29.
Kf1 {[%clk 0:00:48.9]} 29... Kf8 {[%clk 0:00:28.1]} 30. Bf5 {[%clk 0:00:46.5]}
30... Ke7 {[%clk 0:00:28.1]} 31. h4 {[%clk 0:00:37.4]} 31... Rg8 {[%clk
0:00:17.2]} 32. hxg5 {[%clk 0:00:37.4]} 32... hxg5 {[%clk 0:00:17.8]} 33. Nd2
{[%clk 0:00:32.8]} 33... Bd5 {[%clk 0:00:12.5]} 34. Be4 {[%clk 0:00:27.8]} 34...
Rh8 {[%clk 0:00:09.4]} 35. Ke2 {[%clk 0:00:25.5]} 35... Rh2 {[%clk 0:00:07.6]}
36. Bxd5 {[%clk 0:00:23]} 36... cxd5 {[%clk 0:00:07.8]} 37. Kf3 {[%clk
0:00:19.5]} 37... Ke6 {[%clk 0:00:08.5]} 38. Nb3 {[%clk 0:00:17.6]} 38... Kf5
{[%clk 0:00:09.1]} 39. Nd4+ {[%clk 0:00:13.9]} 39... Bxd4 {[%clk 0:00:09.2]} 40.
cxd4 {[%clk 0:00:15.8]} 40... g4+ {[%clk 0:00:10.3]} 41. Ke2 {[%clk 0:00:17.3]}
41... Rxg2 {[%clk 0:00:11.6]} 42. Kf1 {[%clk 0:00:17.2]} 42... Rh2 {[%clk
0:00:11.7]} 43. Kg1 {[%clk 0:00:17.4]} 43... Rh3 {[%clk 0:00:12]} 44. Rc1 {[%clk
0:00:18.8]} 44... Rb3 {[%clk 0:00:11.7]} 45. Rc7 {[%clk 0:00:20.5]} 45... Ke4
{[%clk 0:00:10]} 46. Rxf7 {[%clk 0:00:21.1]} 46... Rxb2 {[%clk 0:00:09.8]} 47.
e6 {[%clk 0:00:22.5]} 47... Kf3 {[%clk 0:00:10.7]} 48. e7 {[%clk 0:00:22]} 48...
Re2 {[%clk 0:00:11.3]} 49. Rg7 {[%clk 0:00:20.6]} 49... Re1+ {[%clk 0:00:10.5]}
50. Kh2 {[%clk 0:00:21.4]} 50... Re2 {[%clk 0:00:09.6]} 51. Kg1 {[%clk
0:00:22.3]} 51... Re1+ {[%clk 0:00:08.5]} 52. Kh2 {[%clk 0:00:23.4]} 52... Re6
{[%clk 0:00:09.4]} 53. Kg1 {[%clk 0:00:23.4]} 53... Re4 {[%clk 0:00:07.4]} 54.
Kf1 {[%clk 0:00:23.4]} 54... g3 {[%clk 0:00:04.1]} 55. fxg3 {[%clk 0:00:24.3]}
55... fxg3 {[%clk 0:00:04.8]} 56. Rf7+ {[%clk 0:00:23.7]} 56... Kg4 {[%clk
0:00:05.4]} 57. Kg2 {[%clk 0:00:25.6]} 57... Re2+ {[%clk 0:00:05.8]} 58. Kg1
{[%clk 0:00:27]} 58... Kh3 {[%clk 0:00:05.5]} 59. Kf1 {[%clk 0:00:27.7]} 59...
Re4 {[%clk 0:00:05.8]} 60. Rh7+ {[%clk 0:00:28.7]} 60... Kg4 {[%clk 0:00:06.6]}
61. Rf7 {[%clk 0:00:30.6]} 61... Kg5 {[%clk 0:00:07.2]} 62. Kg2 {[%clk
0:00:31.4]} 62... Kg6 {[%clk 0:00:07.1]} 63. Rf8 {[%clk 0:00:31.3]} 63... Rxe7
{[%clk 0:00:07.9]} 64. Kxg3 {[%clk 0:00:32.7]} 64... Re4 {[%clk 0:00:08.2]} 65.
Rb8 {[%clk 0:00:34.2]} 65... Rxd4 {[%clk 0:00:08.5]} 66. Rxb7 {[%clk 0:00:35.8]}
66... Kf5 {[%clk 0:00:06.8]} 67. Rb6 {[%clk 0:00:36.9]} 67... Ke4 {[%clk
0:00:06.8]} 68. Rxa6 {[%clk 0:00:38.2]} 68... Rd3+ {[%clk 0:00:06.5]} 69. Kf2
{[%clk 0:00:38.1]} 69... Rd2+ {[%clk 0:00:07.3]} 70. Ke1 {[%clk 0:00:38.5]}
70... Ra2 {[%clk 0:00:08.7]} 71. Re6+ {[%clk 0:00:36.6]} 71... Kd3 {[%clk
0:00:09]} 72. a6 {[%clk 0:00:35.2]} 72... d4 {[%clk 0:00:10.1]} 73. Re7 {[%clk
0:00:32.9]} 73... Ra1+ {[%clk 0:00:10.6]} 74. Kf2 {[%clk 0:00:33.8]} 74... Rxa6
{[%clk 0:00:10.8]} 75. Rb7 {[%clk 0:00:31.4]} 75... Kd2 {[%clk 0:00:08.6]} 76.
Rb2+ {[%clk 0:00:30.9]} 76... Kc3 {[%clk 0:00:09]} 77. Rb8 {[%clk 0:00:31.1]}
77... Re6 {[%clk 0:00:09.7]} 78. Rc8+ {[%clk 0:00:31.1]} 78... Kd2 {[%clk
0:00:10.4]} 79. Rc4 {[%clk 0:00:30.4]} 79... d3 {[%clk 0:00:11]} 80. Rc5 {[%clk
0:00:32.1]} 80... Kd1 {[%clk 0:00:11.1]} 81. Rc3 {[%clk 0:00:32.8]} 81... Kd2
{[%clk 0:00:11]} 82. Rc5 {[%clk 0:00:33.7]} 82... Rf6+ {[%clk 0:00:12]} 83. Kg3
{[%clk 0:00:33.9]} 83... Kd1 {[%clk 0:00:12.3]} 84. Rc3 {[%clk 0:00:33.8]} 84...
d2 {[%clk 0:00:13.1]} 85. Kg2 {[%clk 0:00:34.3]} 85... Ke2 {[%clk 0:00:13]} 86.
Rc2 {[%clk 0:00:35.4]} 86... Kd3 {[%clk 0:00:13.3]} 0-1

[Event "*** Titled Tuesday Blitz"]
[Site "Chess.com"]
[Date "2018.05.01"]
[Round "10"]
[White "Abund"]
[Black "Jospem"]
[Result "1/2-1/2"]
[WhiteElo "2517"]
[BlackElo "2677"]
[TimeControl "180+2"]
[EndTime "15:16:03 PDT"]
[Termination "Game drawn by repetition"]

1. Nf3 {[%clk 0:03:00.8]} 1... d5 {[%clk 0:02:59.9]} 2. d4 {[%clk 0:02:53.7]}
2... Nf6 {[%clk 0:02:45.6]} 3. c4 {[%clk 0:02:54.5]} 3... c6 {[%clk 0:02:43.9]}
4. e3 {[%clk 0:02:53.3]} 4... g6 {[%clk 0:02:44.3]} 5. Nc3 {[%clk 0:02:53.1]}
5... Bg7 {[%clk 0:02:39.2]} 6. Be2 {[%clk 0:02:52]} 6... O-O {[%clk 0:02:38.5]}
7. O-O {[%clk 0:02:52.8]} 7... b6 {[%clk 0:02:39.6]} 8. Qb3 {[%clk 0:02:47.3]}
8... Bb7 {[%clk 0:02:40.7]} 9. cxd5 {[%clk 0:02:44.5]} 9... cxd5 {[%clk
0:02:42.6]} 10. Bd2 {[%clk 0:02:45.6]} 10... a6 {[%clk 0:02:43.5]} 11. Na4
{[%clk 0:02:35.6]} 11... Nbd7 {[%clk 0:02:42.9]} 12. Rfc1 {[%clk 0:02:26.6]}
12... Ne4 {[%clk 0:02:35.5]} 13. Ba5 {[%clk 0:02:17.8]} 13... bxa5 {[%clk
0:02:26.3]} 14. Qxb7 {[%clk 0:02:18.2]} 14... Ndf6 {[%clk 0:02:23.5]} 15. Ne5
{[%clk 0:02:09.1]} 15... e6 {[%clk 0:02:18.7]} 16. Nc6 {[%clk 0:01:38.4]} 16...
Qd6 {[%clk 0:02:12.5]} 17. f3 {[%clk 0:01:34]} 17... Bh6 {[%clk 0:02:12.7]} 18.
fxe4 {[%clk 0:01:23.9]} 18... Bxe3+ {[%clk 0:02:12.9]} 19. Kh1 {[%clk
0:01:24.3]} 19... Nxe4 {[%clk 0:02:09.2]} 20. Rf1 {[%clk 0:01:20.8]} 20... Nf2+
{[%clk 0:02:00.6]} 21. Rxf2 {[%clk 0:01:21.8]} 21... Bxf2 {[%clk 0:02:02.5]} 22.
Rf1 {[%clk 0:01:18.6]} 22... Bh4 {[%clk 0:02:01.3]} 23. Nb6 {[%clk 0:01:15.1]}
23... Rae8 {[%clk 0:01:49.6]} 24. Nd7 {[%clk 0:01:16]} 24... Bg5 {[%clk
0:01:24.4]} 25. Nxf8 {[%clk 0:01:15.3]} 25... Rxf8 {[%clk 0:01:26.3]} 26. Ne5
{[%clk 0:01:07.8]} 26... f6 {[%clk 0:01:22.7]} 27. Nf3 {[%clk 0:01:04.7]} 27...
Bf4 {[%clk 0:01:21.7]} 28. Qxa6 {[%clk 0:01:03.8]} 28... Qe7 {[%clk 0:01:11]}
29. Qxa5 {[%clk 0:00:59.2]} 29... g5 {[%clk 0:01:12.4]} 30. Bd3 {[%clk
0:00:55.2]} 30... Bc7 {[%clk 0:01:07.6]} 31. Qe1 {[%clk 0:00:55.1]} 31... Qd6
{[%clk 0:01:03.9]} 32. g3 {[%clk 0:00:55.3]} 32... h6 {[%clk 0:00:58.4]} 33. Qe2
{[%clk 0:00:55.4]} 33... Kg7 {[%clk 0:00:59.2]} 34. a3 {[%clk 0:00:54.6]} 34...
Qb6 {[%clk 0:00:52.6]} 35. Rc1 {[%clk 0:00:54.5]} 35... Rf7 {[%clk 0:00:48.9]}
36. g4 {[%clk 0:00:34.2]} 36... Qd6 {[%clk 0:00:47.8]} 37. Re1 {[%clk
0:00:33.1]} 37... Re7 {[%clk 0:00:48.1]} 38. Bf5 {[%clk 0:00:24]} 38... Qf4
{[%clk 0:00:48.8]} 39. Qe3 {[%clk 0:00:21.3]} 39... Qd6 {[%clk 0:00:34.3]} 40.
Bxe6 {[%clk 0:00:22.3]} 40... h5 {[%clk 0:00:33.9]} 41. gxh5 {[%clk 0:00:19.2]}
41... g4 {[%clk 0:00:35.4]} 42. h6+ {[%clk 0:00:20.4]} 42... Kh8 {[%clk
0:00:34.8]} 43. Qf2 {[%clk 0:00:08.1]} 43... Rxe6 {[%clk 0:00:32.7]} 44. Rxe6
{[%clk 0:00:08.8]} 44... Qxe6 {[%clk 0:00:34.5]} 45. Nh4 {[%clk 0:00:05.9]}
45... Qe4+ {[%clk 0:00:35.3]} 46. Kg1 {[%clk 0:00:05.4]} 46... Bf4 {[%clk
0:00:36.7]} 47. Qxf4 {[%clk 0:00:05.1]} 47... Qe1+ {[%clk 0:00:34.3]} 48. Kg2
{[%clk 0:00:05.1]} 48... Qxh4 {[%clk 0:00:36.2]} 49. Qg3 {[%clk 0:00:03.7]}
49... Qg5 {[%clk 0:00:36.1]} 50. Qf2 {[%clk 0:00:05]} 50... Qxh6 {[%clk
0:00:35.7]} 51. b4 {[%clk 0:00:05.9]} 51... Qh3+ {[%clk 0:00:36.6]} 52. Kg1
{[%clk 0:00:07.2]} 52... Kg7 {[%clk 0:00:37.6]} 53. Qg3 {[%clk 0:00:08.5]} 53...
Qh5 {[%clk 0:00:36.2]} 54. Qc7+ {[%clk 0:00:09.6]} 54... Kg6 {[%clk 0:00:36.6]}
55. Qf4 {[%clk 0:00:10.5]} 55... Qh4 {[%clk 0:00:34.3]} 56. Qg3 {[%clk
0:00:10.9]} 56... Qg5 {[%clk 0:00:35.8]} 57. Qd3+ {[%clk 0:00:09.1]} 57... f5
{[%clk 0:00:35.9]} 58. b5 {[%clk 0:00:10.3]} 58... Qc1+ {[%clk 0:00:36.2]} 59.
Kg2 {[%clk 0:00:10.8]} 59... Kg5 {[%clk 0:00:37.1]} 60. b6 {[%clk 0:00:10.9]}
60... Qb2+ {[%clk 0:00:37.9]} 61. Kg1 {[%clk 0:00:11.8]} 61... Qxb6 {[%clk
0:00:39]} 62. Qe3+ {[%clk 0:00:13.1]} 62... Kg6 {[%clk 0:00:40.1]} 63. Qe5
{[%clk 0:00:13.3]} 63... Qb1+ {[%clk 0:00:41.1]} 64. Kg2 {[%clk 0:00:14.5]}
64... Qb2+ {[%clk 0:00:39.4]} 65. Kg1 {[%clk 0:00:15.7]} 65... Qc1+ {[%clk
0:00:39.4]} 66. Kg2 {[%clk 0:00:16.8]} 66... Qb2+ {[%clk 0:00:34.6]} 67. Kg1
{[%clk 0:00:17.7]} 67... Qxa3 {[%clk 0:00:36.5]} 68. Qxd5 {[%clk 0:00:18.1]}
68... Qe3+ {[%clk 0:00:36.3]} 69. Kf1 {[%clk 0:00:15.8]} 69... Kg5 {[%clk
0:00:32.5]} 70. Qd6 {[%clk 0:00:11.9]} 70... Qd3+ {[%clk 0:00:20.4]} 71. Kf2
{[%clk 0:00:11.5]} 71... Qc2+ {[%clk 0:00:20.8]} 72. Kg1 {[%clk 0:00:12.3]}
72... Qd1+ {[%clk 0:00:21.6]} 73. Kf2 {[%clk 0:00:12.9]} 73... Qf3+ {[%clk
0:00:21.8]} 74. Kg1 {[%clk 0:00:14]} 74... f4 {[%clk 0:00:23.2]} 75. Qe5+ {[%clk
0:00:12.5]} 75... Kg6 {[%clk 0:00:24.5]} 76. Qe6+ {[%clk 0:00:13.5]} 76... Kh5
{[%clk 0:00:26]} 77. Qf5+ {[%clk 0:00:13.5]} 77... Kh4 {[%clk 0:00:26.8]} 78.
Qf6+ {[%clk 0:00:13.4]} 78... Kh5 {[%clk 0:00:28.2]} 79. Qf5+ {[%clk 0:00:14.4]}
79... Kh6 {[%clk 0:00:29.8]} 80. Qf6+ {[%clk 0:00:15.7]} 80... Kh7 {[%clk
0:00:31.7]} 81. Qf7+ {[%clk 0:00:16.9]} 81... Kh8 {[%clk 0:00:33.6]} 82. Qf8+
{[%clk 0:00:18.2]} 82... Kh7 {[%clk 0:00:35.4]} 83. Qf7+ {[%clk 0:00:19.6]}
83... Kh6 {[%clk 0:00:37.2]} 84. Qf6+ {[%clk 0:00:20.9]} 84... Kh5 {[%clk
0:00:39]} 85. Qf5+ {[%clk 0:00:21.8]} 85... Kh4 {[%clk 0:00:39.6]} 86. Qf6+
{[%clk 0:00:22.9]} 86... Kh5 {[%clk 0:00:38.7]} 87. Qf5+ {[%clk 0:00:23.7]}
87... Kh6 {[%clk 0:00:38.9]} 88. Qf6+ {[%clk 0:00:23.3]} 88... Kh5 {[%clk
0:00:40.3]} 89. Qf5+ {[%clk 0:00:23.9]} 1/2-1/2